[Event "Titled Tuesday Blitz May 23 Early 2023"]
[White "Rottenwohrer Suarez, Juan"]
[Black "Karthik Venkataraman"]
[WhiteFideId "32068182"]
[BlackFideId "25006479"]
[WhiteElo "2174"]
[BlackElo "2419"]
[Result "0-1"]
[Round "01"]
[TimeControl "180+2"]
[Date "2023.05.23"]
[WhiteClock "0:00:00"]
[BlackClock "0:00:20"]

1. d4 {[%clk 0:02:59]}  c6 {[%clk 0:02:57]} 2. c4 {[%clk 0:02:58]}  Nf6 {[%clk 0:02:54]} 3. Nf3 {[%clk 0:02:58]}  g6 {[%clk 0:02:51]} 4. Nc3 {[%clk 0:02:57]}  d5 {[%clk 0:02:50]} 5. cxd5 {[%clk 0:02:58]}  Nxd5 {[%clk 0:02:50]} 6. e4 {[%clk 0:02:50]}  Nxc3 {[%clk 0:02:50]} 7. bxc3 {[%clk 0:02:51]}  Bg7 {[%clk 0:02:50]} 8. Be2 {[%clk 0:02:52]}  O-O {[%clk 0:02:51]} 9. O-O {[%clk 0:02:53]}  Nd7 {[%clk 0:02:50]} 10. Bg5 {[%clk 0:02:37]}  h6 {[%clk 0:02:48]} 11. Bh4 {[%clk 0:02:37]}  Re8 {[%clk 0:02:44]} 12. Qb3 {[%clk 0:02:16]}  Qa5 {[%clk 0:02:37]} 13. Rfd1 {[%clk 0:02:07]}  Nb6 {[%clk 0:02:34]} 14. c4 {[%clk 0:01:46]}  c5 {[%clk 0:02:16]} 15. d5 {[%clk 0:01:38]}  Bd7 {[%clk 0:02:15]} 16. Qe3 {[%clk 0:01:29]}  Na4 {[%clk 0:02:04]} 17. e5 {[%clk 0:01:22]}  Qc3 {[%clk 0:02:04]} 18. Rac1 {[%clk 0:01:07]}  Qxe3 {[%clk 0:02:03]} 19. fxe3 {[%clk 0:01:08]}  a6 {[%clk 0:01:49]} 20. h3 {[%clk 0:01:07]}  b5 {[%clk 0:01:47]} 21. cxb5 {[%clk 0:01:05]}  axb5 {[%clk 0:01:47]} 22. Rd2 {[%clk 0:00:32]}  c4 {[%clk 0:01:32]} 23. Bg3 {[%clk 0:00:18]}  c3 {[%clk 0:01:30]} 24. Rdc2 {[%clk 0:00:16]}  b4 {[%clk 0:01:30]} 25. Nd4 {[%clk 0:00:16]}  Nc5 {[%clk 0:01:29]} 26. Bb5 {[%clk 0:00:13]}  Bxb5 {[%clk 0:01:23]} 27. Nxb5 {[%clk 0:00:14]}  Reb8 {[%clk 0:01:20]} 28. Nd4 {[%clk 0:00:13]}  Rb7 {[%clk 0:01:17]} 29. Nc6 {[%clk 0:00:13]}  Nd3 {[%clk 0:01:04]} 30. Rb1 {[%clk 0:00:13]}  Nb2 {[%clk 0:01:04]} 31. Rbxb2 {[%clk 0:00:11]}  cxb2 {[%clk 0:01:05]} 32. Rxb2 {[%clk 0:00:12]}  Ra3 {[%clk 0:01:02]} 33. Kf2 {[%clk 0:00:09]}  f6 {[%clk 0:00:44]} 34. exf6 {[%clk 0:00:08]}  Bxf6 {[%clk 0:00:45]} 35. Rxb4 {[%clk 0:00:09]}  Rxa2+ {[%clk 0:00:44]} 36. Kf3 {[%clk 0:00:09]}  Rxb4 {[%clk 0:00:43]} 37. Nxb4 {[%clk 0:00:09]}  Ra3 {[%clk 0:00:43]} 38. Nc6 {[%clk 0:00:08]}  Rd3 {[%clk 0:00:38]} 39. Nb4 {[%clk 0:00:05]}  Rd2 {[%clk 0:00:38]} 40. e4 {[%clk 0:00:04]}  h5 {[%clk 0:00:34]} 41. Bf4 {[%clk 0:00:04]}  Rd1 {[%clk 0:00:33]} 42. Nc6 {[%clk 0:00:05]}  Rd3+ {[%clk 0:00:32]} 43. Ke2 {[%clk 0:00:04]}  Rb3 {[%clk 0:00:32]} 44. e5 {[%clk 0:00:05]}  Bh4 {[%clk 0:00:33]} 45. Be3 {[%clk 0:00:02]}  Rb5 {[%clk 0:00:31]} 46. d6 {[%clk 0:00:02]}  exd6 {[%clk 0:00:30]} 47. exd6 {[%clk 0:00:03]}  Rd5 {[%clk 0:00:30]} 48. Ne7+ {[%clk 0:00:03]}  Bxe7 {[%clk 0:00:30]} 49. dxe7 {[%clk 0:00:04]}  Re5 {[%clk 0:00:30]} 50. Kf3 {[%clk 0:00:05]}  Rxe7 {[%clk 0:00:31]} 51. Bg5 {[%clk 0:00:06]}  Re1 {[%clk 0:00:29]} 52. g4 {[%clk 0:00:06]}  hxg4+ {[%clk 0:00:27]} 53. hxg4 {[%clk 0:00:07]}  Kf7 {[%clk 0:00:27]} 54. Kf4 {[%clk 0:00:07]}  Rb1 {[%clk 0:00:28]} 55. Ke4 {[%clk 0:00:07]}  Rb4+ {[%clk 0:00:28]} 56. Kf3 {[%clk 0:00:08]}  Ra4 {[%clk 0:00:28]} 57. Bf4 {[%clk 0:00:08]}  Ke6 {[%clk 0:00:29]} 58. Bg5 {[%clk 0:00:08]}  Ke5 {[%clk 0:00:29]} 59. Bh6 {[%clk 0:00:08]}  Ra3+ {[%clk 0:00:29]} 60. Kf2 {[%clk 0:00:09]}  Ke4 {[%clk 0:00:30]} 61. Bg5 {[%clk 0:00:09]}  Rf3+ {[%clk 0:00:24]} 62. Kg2 {[%clk 0:00:09]}  Rf7 {[%clk 0:00:23]} 63. Kg3 {[%clk 0:00:09]}  Kd3 {[%clk 0:00:24]} 64. Bf4 {[%clk 0:00:08]}  Ke2 {[%clk 0:00:24]} 65. Bg5 {[%clk 0:00:08]}  Kd3 {[%clk 0:00:21]} 66. Bf4 {[%clk 0:00:08]}  Ke4 {[%clk 0:00:21]} 67. Bg5 {[%clk 0:00:09]}  Rf3+ {[%clk 0:00:21]} 68. Kg2 {[%clk 0:00:09]}  Rb3 {[%clk 0:00:20]} 69. Bh6 {[%clk 0:00:08]}  Rb5 {[%clk 0:00:19]} 70. Kg3 {[%clk 0:00:08]}  g5 {[%clk 0:00:19]} 71. Bf8 {[%clk 0:00:02]}  Rb3+ {[%clk 0:00:19]} 72. Kg2 {[%clk 0:00:00]}  Kf4 {[%clk 0:00:20]} 0-1


[Site "https://www.chess.com"]

[Event "Titled Tuesday Blitz May 23 Early 2023"]
[White "Pranav Anand"]
[Black "Srdanovic, Jovana"]
[WhiteFideId "46626786"]
[BlackFideId "954810"]
[WhiteElo "2389"]
[BlackElo "2169"]
[Result "1-0"]
[Round "01"]
[TimeControl "180+2"]
[Date "2023.05.23"]
[WhiteClock "0:02:43"]
[BlackClock "0:02:02"]

1. Nf3 {[%clk 0:03:00]}  d5 {[%clk 0:02:58]} 2. g3 {[%clk 0:03:01]}  Nf6 {[%clk 0:02:58]} 3. Bg2 {[%clk 0:03:01]}  c6 {[%clk 0:02:58]} 4. O-O {[%clk 0:03:02]}  Bf5 {[%clk 0:02:56]} 5. c4 {[%clk 0:03:02]}  e6 {[%clk 0:02:56]} 6. d4 {[%clk 0:03:02]}  Nbd7 {[%clk 0:02:55]} 7. Nc3 {[%clk 0:03:02]}  Be7 {[%clk 0:02:54]} 8. Nh4 {[%clk 0:03:01]}  Bg4 {[%clk 0:02:49]} 9. Qb3 {[%clk 0:03:01]}  Qb6 {[%clk 0:02:48]} 10. c5 {[%clk 0:03:02]}  Qa6 {[%clk 0:02:48]} 11. Qc2 {[%clk 0:02:59]}  O-O {[%clk 0:02:46]} 12. h3 {[%clk 0:02:55]}  Bh5 {[%clk 0:02:45]} 13. g4 {[%clk 0:02:55]}  Bg6 {[%clk 0:02:45]} 14. Nxg6 {[%clk 0:02:55]}  hxg6 {[%clk 0:02:46]} 15. f4 {[%clk 0:02:53]}  b6 {[%clk 0:02:44]} 16. cxb6 {[%clk 0:02:50]}  Qxb6 {[%clk 0:02:40]} 17. Be3 {[%clk 0:02:43]}  Qb5 {[%clk 0:02:02]} 18. Nxb5 {[%clk 0:02:43]} 1-0


[Site "https://www.chess.com"]

[Event "Titled Tuesday Blitz May 23 Early 2023"]
[White "Principe, Alexander"]
[Black "Sattarov, Bobir"]
[WhiteFideId "3804542"]
[BlackFideId "14203081"]
[WhiteElo "2203"]
[BlackElo "2351"]
[Result "1/2-1/2"]
[Round "01"]
[TimeControl "180+2"]
[Date "2023.05.23"]
[WhiteClock "0:00:13"]
[BlackClock "0:00:04"]

1. e4 {[%clk 0:02:58]}  c5 {[%clk 0:02:59]} 2. Nf3 {[%clk 0:02:59]}  g6 {[%clk 0:03:00]} 3. d4 {[%clk 0:02:59]}  cxd4 {[%clk 0:03:00]} 4. Nxd4 {[%clk 0:02:59]}  Bg7 {[%clk 0:03:01]} 5. Nc3 {[%clk 0:02:57]}  Nc6 {[%clk 0:03:01]} 6. Nb3 {[%clk 0:02:55]}  Nf6 {[%clk 0:02:59]} 7. Bd3 {[%clk 0:02:56]}  O-O {[%clk 0:02:50]} 8. O-O {[%clk 0:02:56]}  d5 {[%clk 0:02:48]} 9. exd5 {[%clk 0:02:55]}  Nxd5 {[%clk 0:02:48]} 10. Nxd5 {[%clk 0:02:56]}  Qxd5 {[%clk 0:02:48]} 11. Qe2 {[%clk 0:02:57]}  a5 {[%clk 0:02:43]} 12. c3 {[%clk 0:02:48]}  a4 {[%clk 0:02:42]} 13. Nd2 {[%clk 0:02:47]}  a3 {[%clk 0:02:41]} 14. Bc4 {[%clk 0:02:45]}  Qf5 {[%clk 0:02:25]} 15. Nb3 {[%clk 0:02:40]}  axb2 {[%clk 0:02:23]} 16. Bxb2 {[%clk 0:02:40]}  Ne5 {[%clk 0:02:21]} 17. Nd4 {[%clk 0:02:33]}  Qf4 {[%clk 0:02:08]} 18. Bb3 {[%clk 0:02:19]}  Ng4 {[%clk 0:01:50]} 19. g3 {[%clk 0:02:15]}  Qh6 {[%clk 0:01:49]} 20. f3 {[%clk 0:02:14]}  Ne5 {[%clk 0:01:31]} 21. Rad1 {[%clk 0:02:09]}  b6 {[%clk 0:01:31]} 22. a4 {[%clk 0:02:05]}  Bb7 {[%clk 0:01:29]} 23. Bc1 {[%clk 0:01:54]}  Qh5 {[%clk 0:01:28]} 24. Bf4 {[%clk 0:01:53]}  Nc6 {[%clk 0:01:12]} 25. Nb5 {[%clk 0:01:49]}  Rad8 {[%clk 0:01:08]} 26. g4 {[%clk 0:00:57]}  Qc5+ {[%clk 0:01:06]} 27. Be3 {[%clk 0:00:57]}  Qe5 {[%clk 0:01:06]} 28. Rfe1 {[%clk 0:00:47]}  Rxd1 {[%clk 0:01:05]} 29. Qxd1 {[%clk 0:00:47]}  Na5 {[%clk 0:01:02]} 30. Bd4 {[%clk 0:00:38]}  Qf4 {[%clk 0:01:02]} 31. Bxg7 {[%clk 0:00:32]}  Kxg7 {[%clk 0:01:02]} 32. Qd4+ {[%clk 0:00:32]}  Qxd4+ {[%clk 0:01:02]} 33. Nxd4 {[%clk 0:00:33]}  e6 {[%clk 0:01:02]} 34. Bc2 {[%clk 0:00:23]}  Rc8 {[%clk 0:01:02]} 35. Re3 {[%clk 0:00:18]}  Nc4 {[%clk 0:01:00]} 36. Rd3 {[%clk 0:00:18]}  Kf6 {[%clk 0:00:57]} 37. Kf2 {[%clk 0:00:18]}  h6 {[%clk 0:00:57]} 38. Bd1 {[%clk 0:00:16]}  g5 {[%clk 0:00:57]} 39. Bb3 {[%clk 0:00:16]}  Ne5 {[%clk 0:00:56]} 40. Re3 {[%clk 0:00:17]}  Rc5 {[%clk 0:00:56]} 41. Nb5 {[%clk 0:00:15]}  Ng6 {[%clk 0:00:53]} 42. Bc2 {[%clk 0:00:15]}  Nf4 {[%clk 0:00:53]} 43. Be4 {[%clk 0:00:15]}  Bxe4 {[%clk 0:00:50]} 44. Rxe4 {[%clk 0:00:16]}  Nd5 {[%clk 0:00:47]} 45. Rb4 {[%clk 0:00:14]}  Ke5 {[%clk 0:00:44]} 46. Rb2 {[%clk 0:00:12]}  Nf4 {[%clk 0:00:42]} 47. Ke3 {[%clk 0:00:12]}  Rd5 {[%clk 0:00:41]} 48. Nd4 {[%clk 0:00:12]}  Rc5 {[%clk 0:00:40]} 49. Rb3 {[%clk 0:00:12]}  Nd5+ {[%clk 0:00:39]} 50. Kd2 {[%clk 0:00:13]}  Nxc3 {[%clk 0:00:37]} 51. Rxc3 {[%clk 0:00:09]}  Kxd4 {[%clk 0:00:38]} 52. Rb3 {[%clk 0:00:10]}  Rc6 {[%clk 0:00:35]} 53. Rb4+ {[%clk 0:00:10]}  Ke5 {[%clk 0:00:30]} 54. Kd3 {[%clk 0:00:10]}  f5 {[%clk 0:00:30]} 55. Ke3 {[%clk 0:00:09]}  f4+ {[%clk 0:00:29]} 56. Kd3 {[%clk 0:00:09]}  Kd5 {[%clk 0:00:29]} 57. Rb5+ {[%clk 0:00:09]}  Kd6 {[%clk 0:00:29]} 58. Kd4 {[%clk 0:00:10]}  Ke7 {[%clk 0:00:28]} 59. Rb4 {[%clk 0:00:10]}  Kf6 {[%clk 0:00:27]} 60. Rb5 {[%clk 0:00:11]}  Rd6+ {[%clk 0:00:27]} 61. Ke4 {[%clk 0:00:11]}  Rc6 {[%clk 0:00:23]} 62. Kd4 {[%clk 0:00:11]}  Ke7 {[%clk 0:00:23]} 63. Ke4 {[%clk 0:00:11]}  Rc4+ {[%clk 0:00:21]} 64. Kd3 {[%clk 0:00:11]}  Rxa4 {[%clk 0:00:21]} 65. Rxb6 {[%clk 0:00:12]}  Ra3+ {[%clk 0:00:22]} 66. Ke2 {[%clk 0:00:10]}  Ra2+ {[%clk 0:00:22]} 67. Kd3 {[%clk 0:00:10]}  Rxh2 {[%clk 0:00:22]} 68. Rb7+ {[%clk 0:00:10]}  Kf6 {[%clk 0:00:23]} 69. Rh7 {[%clk 0:00:11]}  e5 {[%clk 0:00:20]} 70. Ra7 {[%clk 0:00:11]}  Rh3 {[%clk 0:00:20]} 71. Ra6+ {[%clk 0:00:11]}  Kg7 {[%clk 0:00:20]} 72. Ke4 {[%clk 0:00:12]}  Rh1 {[%clk 0:00:19]} 73. Ra7+ {[%clk 0:00:12]}  Kf6 {[%clk 0:00:18]} 74. Ra6+ {[%clk 0:00:13]}  Kf7 {[%clk 0:00:18]} 75. Ra7+ {[%clk 0:00:13]}  Ke6 {[%clk 0:00:18]} 76. Ra6+ {[%clk 0:00:14]}  Ke7 {[%clk 0:00:18]} 77. Kxe5 {[%clk 0:00:13]}  Re1+ {[%clk 0:00:17]} 78. Kf5 {[%clk 0:00:13]}  Re3 {[%clk 0:00:17]} 79. Ra7+ {[%clk 0:00:13]}  Kd6 {[%clk 0:00:17]} 80. Ra6+ {[%clk 0:00:13]}  Kd5 {[%clk 0:00:18]} 81. Rxh6 {[%clk 0:00:13]}  Rxf3 {[%clk 0:00:18]} 82. Kxg5 {[%clk 0:00:14]}  Rf1 {[%clk 0:00:18]} 83. Rf6 {[%clk 0:00:15]}  f3 {[%clk 0:00:18]} 84. Kh6 {[%clk 0:00:15]}  f2 {[%clk 0:00:18]} 85. Kg6 {[%clk 0:00:14]}  Ke4 {[%clk 0:00:18]} 86. g5 {[%clk 0:00:15]}  Ke3 {[%clk 0:00:18]} 87. Kg7 {[%clk 0:00:15]}  Rg1 {[%clk 0:00:18]} 88. g6 {[%clk 0:00:16]}  f1=Q {[%clk 0:00:18]} 89. Rxf1 {[%clk 0:00:16]}  Rxf1 {[%clk 0:00:19]} 90. Kh7 {[%clk 0:00:16]}  Rh1+ {[%clk 0:00:19]} 91. Kg8 {[%clk 0:00:16]}  Kf4 {[%clk 0:00:10]} 92. g7 {[%clk 0:00:17]}  Kg5 {[%clk 0:00:09]} 93. Kf7 {[%clk 0:00:16]}  Rf1+ {[%clk 0:00:05]} 94. Ke7 {[%clk 0:00:16]}  Re1+ {[%clk 0:00:03]} 95. Kf7 {[%clk 0:00:17]}  Rf1+ {[%clk 0:00:03]} 96. Ke7 {[%clk 0:00:15]}  Re1+ {[%clk 0:00:04]} 97. Kf7 {[%clk 0:00:13]}  Rf1+ {[%clk 0:00:04]} 1/2-1/2


[Site "https://www.chess.com"]

[Event "Titled Tuesday Blitz May 23 Early 2023"]
[White "Suyarov, Mukhammadzokhid"]
[Black "Begunov, Konstantin"]
[WhiteFideId "14210495"]
[BlackFideId "4118510"]
[WhiteElo "2361"]
[BlackElo "2050"]
[Result "1/2-1/2"]
[Round "01"]
[TimeControl "180+2"]
[Date "2023.05.23"]
[WhiteClock "0:01:19"]
[BlackClock "0:00:20"]

1. d4 {[%clk 0:03:00]}  d5 {[%clk 0:02:58]} 2. Nc3 {[%clk 0:02:59]}  Bf5 {[%clk 0:02:56]} 3. f3 {[%clk 0:02:59]}  Nf6 {[%clk 0:02:55]} 4. g4 {[%clk 0:02:59]}  Bg6 {[%clk 0:02:54]} 5. h4 {[%clk 0:02:59]}  h6 {[%clk 0:02:53]} 6. Bf4 {[%clk 0:02:59]}  e6 {[%clk 0:02:52]} 7. e3 {[%clk 0:02:59]}  Bd6 {[%clk 0:02:51]} 8. Nh3 {[%clk 0:02:59]}  c5 {[%clk 0:02:41]} 9. Nb5 {[%clk 0:02:52]}  Bxf4 {[%clk 0:02:32]} 10. Nxf4 {[%clk 0:02:53]}  a6 {[%clk 0:02:30]} 11. Nxg6 {[%clk 0:02:51]}  fxg6 {[%clk 0:02:30]} 12. Nc3 {[%clk 0:02:52]}  Qd6 {[%clk 0:02:20]} 13. Qd2 {[%clk 0:02:50]}  cxd4 {[%clk 0:02:16]} 14. exd4 {[%clk 0:02:48]}  Qg3+ {[%clk 0:02:06]} 15. Qf2 {[%clk 0:02:47]}  Qxf2+ {[%clk 0:02:05]} 16. Kxf2 {[%clk 0:02:48]}  Nc6 {[%clk 0:02:03]} 17. Ne2 {[%clk 0:02:48]}  O-O {[%clk 0:02:02]} 18. Kg3 {[%clk 0:02:47]}  e5 {[%clk 0:01:46]} 19. dxe5 {[%clk 0:02:46]}  Nxe5 {[%clk 0:01:46]} 20. Nd4 {[%clk 0:02:45]}  Nc4 {[%clk 0:01:37]} 21. Bxc4 {[%clk 0:02:44]}  dxc4 {[%clk 0:01:38]} 22. Rhe1 {[%clk 0:02:44]}  Rfe8 {[%clk 0:01:33]} 23. a4 {[%clk 0:02:41]}  Nd5 {[%clk 0:01:29]} 24. c3 {[%clk 0:02:40]}  g5 {[%clk 0:01:14]} 25. hxg5 {[%clk 0:02:38]}  hxg5 {[%clk 0:01:15]} 26. Nf5 {[%clk 0:02:36]}  Nf4 {[%clk 0:01:12]} 27. Nd6 {[%clk 0:02:28]}  Rxe1 {[%clk 0:00:55]} 28. Rxe1 {[%clk 0:02:28]}  Rd8 {[%clk 0:00:54]} 29. Nxc4 {[%clk 0:02:28]}  b5 {[%clk 0:00:54]} 30. axb5 {[%clk 0:02:28]}  axb5 {[%clk 0:00:55]} 31. Na3 {[%clk 0:02:28]}  Rd2 {[%clk 0:00:54]} 32. Rg1 {[%clk 0:01:50]}  Ne2+ {[%clk 0:00:54]} 33. Kf2 {[%clk 0:01:49]}  Nxg1+ {[%clk 0:00:55]} 34. Kxg1 {[%clk 0:01:50]}  Rxb2 {[%clk 0:00:56]} 35. Kf1 {[%clk 0:01:46]}  Kf7 {[%clk 0:00:49]} 36. Ke1 {[%clk 0:01:43]}  Rb3 {[%clk 0:00:46]} 37. Nc2 {[%clk 0:01:41]}  Rxc3 {[%clk 0:00:47]} 38. Nd4 {[%clk 0:01:41]}  Rd3 {[%clk 0:00:40]} 39. Nxb5 {[%clk 0:01:36]}  Rxf3 {[%clk 0:00:39]} 40. Nd6+ {[%clk 0:01:35]}  Kg6 {[%clk 0:00:31]} 41. Nc4 {[%clk 0:01:33]}  Rg3 {[%clk 0:00:25]} 42. Kf2 {[%clk 0:01:28]}  Rxg4 {[%clk 0:00:24]} 43. Nb6 {[%clk 0:01:28]}  Rd4 {[%clk 0:00:22]} 44. Ke3 {[%clk 0:01:26]}  Rd8 {[%clk 0:00:21]} 45. Ke4 {[%clk 0:01:24]}  Rf8 {[%clk 0:00:20]} 46. Nd7 {[%clk 0:01:22]}  g4 {[%clk 0:00:21]} 47. Nxf8+ {[%clk 0:01:18]}  Kg5 {[%clk 0:00:21]} 48. Ne6+ {[%clk 0:01:16]}  Kh4 {[%clk 0:00:21]} 49. Nxg7 {[%clk 0:01:17]}  g3 {[%clk 0:00:21]} 50. Kf3 {[%clk 0:01:17]}  Kh3 {[%clk 0:00:21]} 51. Nh5 {[%clk 0:01:17]}  g2 {[%clk 0:00:19]} 52. Nf4+ {[%clk 0:01:18]}  Kh2 {[%clk 0:00:20]} 53. Nxg2 {[%clk 0:01:19]} 1/2-1/2


[Site "https://www.chess.com"]

[Event "Titled Tuesday Blitz May 23 Early 2023"]
[White "Vitiugov, Nikita"]
[Black "Kielinkei"]
[WhiteFideId "4152956"]
[WhiteElo "2673"]
[BlackElo "2445"]
[Result "1/2-1/2"]
[Round "01"]
[TimeControl "180+2"]
[Date "2023.05.23"]
[WhiteClock "0:00:08"]
[BlackClock "0:00:04"]

1. e4 {[%clk 0:02:59]}  c5 {[%clk 0:03:00]} 2. Nc3 {[%clk 0:02:58]}  e6 {[%clk 0:02:58]} 3. d4 {[%clk 0:02:57]}  cxd4 {[%clk 0:02:58]} 4. Qxd4 {[%clk 0:02:58]}  Nc6 {[%clk 0:02:58]} 5. Qd3 {[%clk 0:02:58]}  Nf6 {[%clk 0:02:56]} 6. Bf4 {[%clk 0:02:57]}  e5 {[%clk 0:02:39]} 7. Bg5 {[%clk 0:02:56]}  Be7 {[%clk 0:02:39]} 8. O-O-O {[%clk 0:02:44]}  d6 {[%clk 0:02:07]} 9. Bxf6 {[%clk 0:02:41]}  gxf6 {[%clk 0:01:52]} 10. Nf3 {[%clk 0:02:12]}  Be6 {[%clk 0:01:50]} 11. Nh4 {[%clk 0:02:12]}  Nd4 {[%clk 0:01:37]} 12. Nb5 {[%clk 0:02:05]}  Nxb5 {[%clk 0:01:28]} 13. Qxb5+ {[%clk 0:02:06]}  Qd7 {[%clk 0:01:27]} 14. Qxd7+ {[%clk 0:01:49]}  Kxd7 {[%clk 0:01:26]} 15. Bb5+ {[%clk 0:01:49]}  Kc7 {[%clk 0:01:25]} 16. Nf5 {[%clk 0:01:40]}  Bxf5 {[%clk 0:01:16]} 17. exf5 {[%clk 0:01:40]}  Rhg8 {[%clk 0:01:07]} 18. g3 {[%clk 0:01:41]}  Rg5 {[%clk 0:00:59]} 19. Bd3 {[%clk 0:01:40]}  d5 {[%clk 0:00:57]} 20. h4 {[%clk 0:01:40]}  Rgg8 {[%clk 0:00:49]} 21. Be2 {[%clk 0:01:41]}  Rad8 {[%clk 0:00:46]} 22. Rd2 {[%clk 0:01:29]}  Bc5 {[%clk 0:00:45]} 23. Bh5 {[%clk 0:01:29]}  Rg7 {[%clk 0:00:44]} 24. Rhd1 {[%clk 0:01:28]}  d4 {[%clk 0:00:36]} 25. Bf3 {[%clk 0:01:26]}  Rgg8 {[%clk 0:00:32]} 26. Re2 {[%clk 0:01:20]}  Rd7 {[%clk 0:00:32]} 27. Rd3 {[%clk 0:01:20]}  Kb8 {[%clk 0:00:28]} 28. Re4 {[%clk 0:01:16]}  Kc7 {[%clk 0:00:27]} 29. Kd1 {[%clk 0:01:14]}  b6 {[%clk 0:00:28]} 30. Ke2 {[%clk 0:01:14]}  a5 {[%clk 0:00:27]} 31. Kf1 {[%clk 0:01:14]}  Rb8 {[%clk 0:00:26]} 32. Kg2 {[%clk 0:01:14]}  b5 {[%clk 0:00:26]} 33. Kh3 {[%clk 0:01:14]}  a4 {[%clk 0:00:26]} 34. Rg4 {[%clk 0:01:06]}  h6 {[%clk 0:00:20]} 35. Rg7 {[%clk 0:01:05]}  Rh8 {[%clk 0:00:20]} 36. Rg4 {[%clk 0:00:55]}  b4 {[%clk 0:00:18]} 37. Re4 {[%clk 0:00:44]}  Kb6 {[%clk 0:00:17]} 38. Kg4 {[%clk 0:00:44]}  h5+ {[%clk 0:00:12]} 39. Kh3 {[%clk 0:00:44]}  Ra7 {[%clk 0:00:12]} 40. Re2 {[%clk 0:00:42]}  a3 {[%clk 0:00:11]} 41. bxa3 {[%clk 0:00:41]}  Rxa3 {[%clk 0:00:10]} 42. Rxa3 {[%clk 0:00:41]}  bxa3 {[%clk 0:00:11]} 43. Bd5 {[%clk 0:00:41]}  Rf8 {[%clk 0:00:06]} 44. Re1 {[%clk 0:00:40]}  Kc7 {[%clk 0:00:07]} 45. Kg2 {[%clk 0:00:39]}  Kd6 {[%clk 0:00:07]} 46. Bf3 {[%clk 0:00:38]}  Rb8 {[%clk 0:00:07]} 47. Bxh5 {[%clk 0:00:38]}  Ke7 {[%clk 0:00:06]} 48. Bf3 {[%clk 0:00:26]}  Rb2 {[%clk 0:00:07]} 49. Ra1 {[%clk 0:00:24]}  Rxc2 {[%clk 0:00:07]} 50. Be4 {[%clk 0:00:25]}  Re2 {[%clk 0:00:07]} 51. Kf3 {[%clk 0:00:24]}  Rb2 {[%clk 0:00:07]} 52. h5 {[%clk 0:00:24]}  Kf8 {[%clk 0:00:05]} 53. h6 {[%clk 0:00:24]}  Kg8 {[%clk 0:00:05]} 54. g4 {[%clk 0:00:19]}  Bb4 {[%clk 0:00:06]} 55. g5 {[%clk 0:00:18]}  fxg5 {[%clk 0:00:03]} 56. f6 {[%clk 0:00:18]}  Bc3 {[%clk 0:00:03]} 57. Rg1 {[%clk 0:00:08]}  Bd2 {[%clk 0:00:03]} 58. Ra1 {[%clk 0:00:08]}  Bc3 {[%clk 0:00:03]} 59. Rg1 {[%clk 0:00:08]}  Bd2 {[%clk 0:00:04]} 60. Ra1 {[%clk 0:00:08]}  Bc3 {[%clk 0:00:04]} 1/2-1/2


[Site "https://www.chess.com"]

[Event "Titled Tuesday Blitz May 23 Early 2023"]
[White "Gurevich, Dmitry"]
[Black "Hayrapetyan, Hovik"]
[WhiteFideId "2000407"]
[BlackFideId "13302639"]
[WhiteElo "2506"]
[BlackElo "2348"]
[Result "0-1"]
[Round "01"]
[TimeControl "180+2"]
[Date "2023.05.23"]
[WhiteClock "0:00:00"]
[BlackClock "0:00:05"]

1. d4 {[%clk 0:02:58]}  Nf6 {[%clk 0:02:59]} 2. c4 {[%clk 0:02:58]}  e6 {[%clk 0:02:59]} 3. Nf3 {[%clk 0:02:58]}  d5 {[%clk 0:02:59]} 4. Nc3 {[%clk 0:02:57]}  Bb4 {[%clk 0:02:59]} 5. e3 {[%clk 0:02:54]}  O-O {[%clk 0:02:58]} 6. Bd3 {[%clk 0:02:53]}  b6 {[%clk 0:02:56]} 7. O-O {[%clk 0:02:49]}  Bb7 {[%clk 0:02:56]} 8. cxd5 {[%clk 0:02:49]}  exd5 {[%clk 0:02:56]} 9. Ne5 {[%clk 0:02:48]}  a6 {[%clk 0:02:52]} 10. f4 {[%clk 0:02:47]}  Bd6 {[%clk 0:02:52]} 11. Bd2 {[%clk 0:02:44]}  c5 {[%clk 0:02:50]} 12. Be1 {[%clk 0:02:43]}  Nc6 {[%clk 0:02:47]} 13. Bh4 {[%clk 0:02:35]}  cxd4 {[%clk 0:02:32]} 14. Nxd5 {[%clk 0:02:11]}  Bxe5 {[%clk 0:02:22]} 15. fxe5 {[%clk 0:02:08]}  Qxd5 {[%clk 0:02:20]} 16. exf6 {[%clk 0:02:06]}  g6 {[%clk 0:02:05]} 17. e4 {[%clk 0:01:57]}  Qa5 {[%clk 0:01:53]} 18. Qf3 {[%clk 0:01:43]}  Kh8 {[%clk 0:01:19]} 19. Qf4 {[%clk 0:01:36]}  Rg8 {[%clk 0:01:12]} 20. Bg5 {[%clk 0:01:30]}  Ne5 {[%clk 0:00:17]} 21. Rad1 {[%clk 0:01:26]}  Rae8 {[%clk 0:00:14]} 22. Bh6 {[%clk 0:01:20]}  Qxa2 {[%clk 0:00:11]} 23. h4 {[%clk 0:00:32]}  Nxd3 {[%clk 0:00:11]} 24. Bg7+ {[%clk 0:00:23]}  Rxg7 {[%clk 0:00:10]} 25. fxg7+ {[%clk 0:00:23]}  Kxg7 {[%clk 0:00:11]} 26. Qf6+ {[%clk 0:00:20]}  Kg8 {[%clk 0:00:11]} 27. Rxd3 {[%clk 0:00:19]}  Rxe4 {[%clk 0:00:11]} 28. Rxd4 {[%clk 0:00:16]}  Rxd4 {[%clk 0:00:12]} 29. Qxd4 {[%clk 0:00:14]}  Qe6 {[%clk 0:00:11]} 30. Qf6 {[%clk 0:00:12]}  Qd5 {[%clk 0:00:09]} 31. Rf2 {[%clk 0:00:06]}  b5 {[%clk 0:00:07]} 32. h5 {[%clk 0:00:00]}  gxh5 {[%clk 0:00:05]} 0-1


[Site "https://www.chess.com"]

[Event "Titled Tuesday Blitz May 23 Early 2023"]
[White "Riehle, Marco"]
[Black "Yeritsyan, Hayk"]
[WhiteFideId "12904392"]
[BlackFideId "13307320"]
[WhiteElo "2462"]
[BlackElo "2441"]
[Result "1-0"]
[Round "01"]
[TimeControl "180+2"]
[Date "2023.05.23"]
[WhiteClock "0:01:29"]
[BlackClock "0:00:07"]

1. e4 {[%clk 0:02:54]}  e5 {[%clk 0:02:58]} 2. Nf3 {[%clk 0:02:53]}  Nc6 {[%clk 0:02:59]} 3. Bc4 {[%clk 0:02:52]}  Bc5 {[%clk 0:02:58]} 4. c3 {[%clk 0:02:52]}  Nf6 {[%clk 0:02:57]} 5. d4 {[%clk 0:02:53]}  exd4 {[%clk 0:02:57]} 6. cxd4 {[%clk 0:02:53]}  Bb4+ {[%clk 0:02:58]} 7. Kf1 {[%clk 0:02:54]}  d5 {[%clk 0:02:47]} 8. exd5 {[%clk 0:02:55]}  Nxd5 {[%clk 0:02:45]} 9. Nc3 {[%clk 0:02:55]}  Nb6 {[%clk 0:02:26]} 10. Bd3 {[%clk 0:02:48]}  Bg4 {[%clk 0:02:04]} 11. Be3 {[%clk 0:02:35]}  O-O {[%clk 0:01:58]} 12. h3 {[%clk 0:02:33]}  Bh5 {[%clk 0:01:55]} 13. d5 {[%clk 0:02:32]}  Ne5 {[%clk 0:01:46]} 14. Be2 {[%clk 0:02:31]}  Nxf3 {[%clk 0:01:42]} 15. Bxb6 {[%clk 0:02:28]}  axb6 {[%clk 0:01:30]} 16. Bxf3 {[%clk 0:02:28]}  Bxf3 {[%clk 0:01:28]} 17. Qxf3 {[%clk 0:02:29]}  Bxc3 {[%clk 0:01:27]} 18. bxc3 {[%clk 0:02:28]}  Qd6 {[%clk 0:01:23]} 19. g3 {[%clk 0:02:25]}  Ra5 {[%clk 0:01:20]} 20. c4 {[%clk 0:02:23]}  Ra3 {[%clk 0:01:19]} 21. Qe4 {[%clk 0:02:20]}  Rfa8 {[%clk 0:01:14]} 22. Kg2 {[%clk 0:02:17]}  g6 {[%clk 0:01:08]} 23. Qe2 {[%clk 0:02:12]}  Qf6 {[%clk 0:01:06]} 24. Rhe1 {[%clk 0:02:09]}  Kg7 {[%clk 0:00:59]} 25. h4 {[%clk 0:02:09]}  h5 {[%clk 0:00:59]} 26. Kg1 {[%clk 0:02:02]}  Kf8 {[%clk 0:00:54]} 27. Kg2 {[%clk 0:02:00]}  Rc3 {[%clk 0:00:51]} 28. Rac1 {[%clk 0:01:57]}  Rxc1 {[%clk 0:00:50]} 29. Rxc1 {[%clk 0:01:58]}  Ra3 {[%clk 0:00:49]} 30. Re1 {[%clk 0:01:57]}  Rc3 {[%clk 0:00:46]} 31. Qe4 {[%clk 0:01:57]}  Kg7 {[%clk 0:00:41]} 32. Re2 {[%clk 0:01:56]}  Rc1 {[%clk 0:00:38]} 33. Rc2 {[%clk 0:01:54]}  Rd1 {[%clk 0:00:36]} 34. Re2 {[%clk 0:01:51]}  Qa1 {[%clk 0:00:35]} 35. f4 {[%clk 0:01:39]}  Rg1+ {[%clk 0:00:33]} 36. Kh2 {[%clk 0:01:39]}  Rc1 {[%clk 0:00:32]} 37. f5 {[%clk 0:01:37]}  Qf6 {[%clk 0:00:27]} 38. fxg6 {[%clk 0:01:35]}  fxg6 {[%clk 0:00:25]} 39. Qe7+ {[%clk 0:01:36]}  Qf7 {[%clk 0:00:24]} 40. Qe5+ {[%clk 0:01:35]}  Kh7 {[%clk 0:00:23]} 41. d6 {[%clk 0:01:30]}  cxd6 {[%clk 0:00:09]} 42. Qxd6 {[%clk 0:01:30]}  Kh6 {[%clk 0:00:07]} 43. Qd2+ {[%clk 0:01:29]} 1-0


[Site "https://www.chess.com"]